[Event "*** Titled Tuesday Blitz"]
[Site "Chess.com"]
[Date "2020.01.07"]
[Round "7"]
[White "vlad_Sid"]
[Black "wild_cat99"]
[Result "1/2-1/2"]
[WhiteElo "2581"]
[BlackElo "2419"]
[TimeControl "180+2"]
[EndTime "14:38:23 PST"]
[Termination "Game drawn - insufficient material"]

1. c4 {[%clk 0:02:59.5]} 1... Nf6 {[%clk 0:03:00.5]} 2. g3 {[%clk 0:03:00.1]}
2... g6 {[%clk 0:03:01.4]} 3. Bg2 {[%clk 0:03:01.6]} 3... d5 {[%clk 0:03:02.9]}
4. cxd5 {[%clk 0:03:01.8]} 4... Nxd5 {[%clk 0:03:04.8]} 5. Nc3 {[%clk
0:03:03.3]} 5... Nxc3 {[%clk 0:03:05.7]} 6. bxc3 {[%clk 0:03:05.2]} 6... Bg7
{[%clk 0:03:07.2]} 7. Rb1 {[%clk 0:03:06.2]} 7... c6 {[%clk 0:03:05.7]} 8. h4
{[%clk 0:03:06.2]} 8... h5 {[%clk 0:03:06]} 9. Nf3 {[%clk 0:02:59.7]} 9... Qc7
{[%clk 0:03:07.2]} 10. Qc2 {[%clk 0:02:59.6]} 10... c5 {[%clk 0:03:04.9]} 11.
O-O {[%clk 0:02:58.8]} 11... c4 {[%clk 0:03:04.5]} 12. d3 {[%clk 0:02:40]} 12...
Be6 {[%clk 0:02:56.4]} 13. Nd4 {[%clk 0:02:33.6]} 13... Bc8 {[%clk 0:02:38.1]}
14. Nb5 {[%clk 0:02:21.5]} 14... Qa5 {[%clk 0:02:36.9]} 15. Bf4 {[%clk
0:02:17.9]} 15... cxd3 {[%clk 0:02:31.4]} 16. Qxd3 {[%clk 0:02:15.2]} 16... Na6
{[%clk 0:02:30.3]} 17. Qe3 {[%clk 0:01:47]} 17... O-O {[%clk 0:02:20.2]} 18.
Qxe7 {[%clk 0:01:43.7]} 18... Bf5 {[%clk 0:02:21.1]} 19. e4 {[%clk 0:01:43.7]}
19... Be6 {[%clk 0:02:19.3]} 20. Nd6 {[%clk 0:01:29.8]} 20... b6 {[%clk
0:02:10.9]} 21. e5 {[%clk 0:01:15.8]} 21... Rab8 {[%clk 0:02:11.8]} 22. Qxa7
{[%clk 0:01:06.6]} 22... Nc5 {[%clk 0:02:12.8]} 23. Qxa5 {[%clk 0:01:00]} 23...
bxa5 {[%clk 0:02:14.7]} 24. a3 {[%clk 0:00:44.7]} 24... Nd3 {[%clk 0:02:13.2]}
25. Nb7 {[%clk 0:00:37.1]} 25... Nxe5 {[%clk 0:02:01.6]} 26. Nxa5 {[%clk
0:00:36.7]} 26... Rxb1 {[%clk 0:01:59.8]} 27. Rxb1 {[%clk 0:00:38.6]} 27... Rc8
{[%clk 0:01:57.1]} 28. Bxe5 {[%clk 0:00:28.7]} 28... Bxe5 {[%clk 0:01:57.6]} 29.
Nc6 {[%clk 0:00:30]} 29... Bf6 {[%clk 0:01:54.8]} 30. a4 {[%clk 0:00:31.3]}
30... Bd7 {[%clk 0:01:54.2]} 31. Rb6 {[%clk 0:00:28.8]} 31... Bxc6 {[%clk
0:01:51.8]} 32. Bxc6 {[%clk 0:00:25.9]} 32... Bxc3 {[%clk 0:01:52.9]} 33. Bd5
{[%clk 0:00:26]} 33... Kf8 {[%clk 0:01:49.8]} 34. Rb7 {[%clk 0:00:25.2]} 34...
f5 {[%clk 0:01:50.9]} 35. Rf7+ {[%clk 0:00:25.2]} 35... Ke8 {[%clk 0:01:52.3]}
36. Kg2 {[%clk 0:00:16.8]} 36... Bd4 {[%clk 0:01:49.2]} 37. Kf3 {[%clk
0:00:10.3]} 37... Rc2 {[%clk 0:01:47.6]} 38. Kf4 {[%clk 0:00:11]} 38... Bxf2
{[%clk 0:01:41.9]} 39. Rg7 {[%clk 0:00:05.4]} 39... Rc5 {[%clk 0:01:38.4]} 40.
Be6 {[%clk 0:00:05.2]} 40... Rc3 {[%clk 0:01:36.5]} 41. Rxg6 {[%clk 0:00:05.3]}
41... Ra3 {[%clk 0:01:37.9]} 42. Bxf5 {[%clk 0:00:05.3]} 42... Rxa4+ {[%clk
0:01:37.4]} 43. Kg5 {[%clk 0:00:06.1]} 43... Bxg3 {[%clk 0:01:37.8]} 44. Kxh5
{[%clk 0:00:05.3]} 44... Rxh4+ {[%clk 0:01:37.3]} 45. Kg5 {[%clk 0:00:06.5]}
45... Ra4 {[%clk 0:01:30]} 46. Kh6 {[%clk 0:00:03.1]} 46... Bh4 {[%clk
0:01:25.6]} 47. Kh5 {[%clk 0:00:03.5]} 47... Kf7 {[%clk 0:01:21.2]} 48. Rg1
{[%clk 0:00:02.8]} 48... Kf6 {[%clk 0:01:17.4]} 49. Bg6 {[%clk 0:00:03.4]} 49...
Bf2 {[%clk 0:01:09]} 50. Rg4 {[%clk 0:00:04.3]} 50... Ra5+ {[%clk 0:01:07.8]}
51. Kh6 {[%clk 0:00:04.3]} 51... Be3+ {[%clk 0:01:05.5]} 52. Kh7 {[%clk
0:00:05.6]} 52... Ra7+ {[%clk 0:01:06.2]} 53. Kg8 {[%clk 0:00:06]} 53... Rg7+
{[%clk 0:01:04.9]} 54. Kf8 {[%clk 0:00:07.3]} 54... Bc5+ {[%clk 0:00:59.1]} 55.
Ke8 {[%clk 0:00:08.1]} 55... Bd6 {[%clk 0:00:58.6]} 56. Bh5 {[%clk 0:00:06.8]}
56... Re7+ {[%clk 0:00:58.5]} 57. Kd8 {[%clk 0:00:06.8]} 57... Ra7 {[%clk
0:00:58.4]} 58. Rg6+ {[%clk 0:00:07.9]} 58... Ke5 {[%clk 0:00:58.9]} 59. Rg5+
{[%clk 0:00:08.7]} 59... Ke6 {[%clk 0:00:59]} 60. Rg6+ {[%clk 0:00:09.7]} 60...
Kd5 {[%clk 0:00:56.9]} 61. Bf3+ {[%clk 0:00:09.3]} 61... Kc5 {[%clk 0:00:56.1]}
62. Rg5+ {[%clk 0:00:10.5]} 62... Kb6 {[%clk 0:00:56.1]} 63. Rg6 {[%clk
0:00:11.5]} 63... Kc5 {[%clk 0:00:56.5]} 64. Kc8 {[%clk 0:00:09.9]} 64... Rc7+
{[%clk 0:00:54.2]} 65. Kd8 {[%clk 0:00:11]} 65... Rf7 {[%clk 0:00:53.4]} 66.
Rg5+ {[%clk 0:00:10.8]} 66... Kb6 {[%clk 0:00:53.2]} 67. Rg6 {[%clk 0:00:10.2]}
67... Rxf3 {[%clk 0:00:48.4]} 68. Rxd6+ {[%clk 0:00:10.3]} 68... Kc5 {[%clk
0:00:50.3]} 69. Kc7 {[%clk 0:00:08.8]} 69... Rf7+ {[%clk 0:00:50.9]} 70. Rd7
{[%clk 0:00:09.9]} 70... Rxd7+ {[%clk 0:00:52.2]} 71. Kxd7 {[%clk 0:00:11.8]}
1/2-1/2

[Event "*** Titled Tuesday Blitz"]
[Site "Chess.com"]
[Date "2020.01.07"]
[Round "7"]
[White "karwowskikacper"]
[Black "IgorBjelobrk"]
[Result "1-0"]
[WhiteElo "2440"]
[BlackElo "2615"]
[TimeControl "180+2"]
[EndTime "14:38:38 PST"]
[Termination "karwowskikacper won by checkmate"]

1. e4 {[%clk 0:03:01.9]} 1... e5 {[%clk 0:03:00]} 2. Nf3 {[%clk 0:03:02.5]} 2...
Nc6 {[%clk 0:03:00.5]} 3. Bb5 {[%clk 0:03:02.8]} 3... Nf6 {[%clk 0:03:00.6]} 4.
O-O {[%clk 0:03:03]} 4... Nxe4 {[%clk 0:03:01.3]} 5. Re1 {[%clk 0:03:03.6]} 5...
Nd6 {[%clk 0:03:01.3]} 6. Nxe5 {[%clk 0:03:04.5]} 6... Be7 {[%clk 0:03:01.3]} 7.
Bf1 {[%clk 0:03:01.5]} 7... Nxe5 {[%clk 0:03:01]} 8. Rxe5 {[%clk 0:03:02.1]}
8... O-O {[%clk 0:03:01]} 9. d4 {[%clk 0:02:56.6]} 9... Bf6 {[%clk 0:03:01.7]}
10. Re1 {[%clk 0:02:57.7]} 10... Ne8 {[%clk 0:03:02.6]} 11. c3 {[%clk
0:02:58.5]} 11... d5 {[%clk 0:03:01.7]} 12. Nd2 {[%clk 0:02:57.1]} 12... g6
{[%clk 0:03:00.3]} 13. h3 {[%clk 0:02:55.6]} 13... Ng7 {[%clk 0:03:00.4]} 14.
Nf3 {[%clk 0:02:56.2]} 14... c6 {[%clk 0:03:01.1]} 15. Bd3 {[%clk 0:02:55.4]}
15... Bf5 {[%clk 0:03:01.1]} 16. Bh6 {[%clk 0:02:54.8]} 16... Bxd3 {[%clk
0:02:59.9]} 17. Qxd3 {[%clk 0:02:55.2]} 17... Re8 {[%clk 0:03:01.1]} 18. Bxg7
{[%clk 0:02:41.8]} 18... Kxg7 {[%clk 0:03:00.8]} 19. Rxe8 {[%clk 0:02:42]} 19...
Qxe8 {[%clk 0:03:02.7]} 20. Re1 {[%clk 0:02:42.3]} 20... Qd8 {[%clk 0:03:03.8]}
21. Re2 {[%clk 0:02:31.6]} 21... a5 {[%clk 0:03:00.4]} 22. Ne5 {[%clk
0:02:28.7]} 22... a4 {[%clk 0:03:00.5]} 23. a3 {[%clk 0:02:27.7]} 23... h5
{[%clk 0:02:53.1]} 24. Qd1 {[%clk 0:02:27.4]} 24... Qd6 {[%clk 0:02:51.8]} 25.
Nd3 {[%clk 0:02:26.2]} 25... b5 {[%clk 0:02:50.2]} 26. Qe1 {[%clk 0:02:23.9]}
26... Ra7 {[%clk 0:02:47.4]} 27. Re8 {[%clk 0:02:17.3]} 27... Rc7 {[%clk
0:02:43.6]} 28. Qe2 {[%clk 0:02:10.9]} 28... Qd7 {[%clk 0:02:32.9]} 29. Re3
{[%clk 0:01:45.6]} 29... Qf5 {[%clk 0:02:31.7]} 30. Qf3 {[%clk 0:01:41.8]} 30...
Qd7 {[%clk 0:01:51.2]} 31. Qe2 {[%clk 0:01:30.2]} 31... Qd6 {[%clk 0:01:50.8]}
32. Re8 {[%clk 0:01:27.6]} 32... h4 {[%clk 0:01:47.1]} 33. f4 {[%clk 0:01:13.5]}
33... Qd7 {[%clk 0:01:44.2]} 34. Re3 {[%clk 0:01:07.5]} 34... Qf5 {[%clk
0:01:43.9]} 35. Qg4 {[%clk 0:01:07.3]} 35... Qd7 {[%clk 0:01:32.1]} 36. Qxd7
{[%clk 0:01:02.2]} 36... Rxd7 {[%clk 0:01:34]} 37. Kf2 {[%clk 0:01:01.2]} 37...
Rc7 {[%clk 0:01:28.9]} 38. Kf3 {[%clk 0:01:01.4]} 38... Be7 {[%clk 0:01:28.1]}
39. Ne5 {[%clk 0:00:58.9]} 39... f5 {[%clk 0:01:24.3]} 40. Nxc6 {[%clk
0:00:53.9]} 40... Bd6 {[%clk 0:01:18.9]} 41. Nd8 {[%clk 0:00:31.6]} 41... Rd7
{[%clk 0:01:18.2]} 42. Ne6+ {[%clk 0:00:31.9]} 42... Kf6 {[%clk 0:01:18.9]} 43.
Ng5 {[%clk 0:00:33]} 43... Kg7 {[%clk 0:01:13.5]} 44. Re6 {[%clk 0:00:31.9]}
44... Be7 {[%clk 0:01:11.7]} 45. Rb6 {[%clk 0:00:27.1]} 45... Bxg5 {[%clk
0:01:06.9]} 46. fxg5 {[%clk 0:00:27.9]} 46... Re7 {[%clk 0:01:05.5]} 47. Rxb5
{[%clk 0:00:28.6]} 47... Re1 {[%clk 0:01:06.4]} 48. Rxd5 {[%clk 0:00:27.9]}
48... Rf1+ {[%clk 0:01:06.3]} 49. Ke2 {[%clk 0:00:23]} 49... Rb1 {[%clk
0:01:06.9]} 50. Rb5 {[%clk 0:00:23.5]} 50... Rg1 {[%clk 0:01:06.6]} 51. Kf2
{[%clk 0:00:24]} 51... Rb1 {[%clk 0:01:07.9]} 52. d5 {[%clk 0:00:21.3]} 52...
Kf7 {[%clk 0:01:08.6]} 53. Rb7+ {[%clk 0:00:21.5]} 53... Ke8 {[%clk 0:01:09.5]}
54. c4 {[%clk 0:00:23]} 54... Rc1 {[%clk 0:01:09.9]} 55. Rb4 {[%clk 0:00:23.8]}
55... Kd7 {[%clk 0:01:08.1]} 56. Kf3 {[%clk 0:00:24.5]} 56... Rc2 {[%clk
0:01:08.1]} 57. Rxa4 {[%clk 0:00:20.5]} 57... Rxb2 {[%clk 0:01:09]} 58. Ra7+
{[%clk 0:00:21.2]} 58... Kd8 {[%clk 0:01:06.9]} 59. c5 {[%clk 0:00:21]} 59...
Rd2 {[%clk 0:01:04.2]} 60. d6 {[%clk 0:00:21.5]} 60... Rd5 {[%clk 0:01:05.5]}
61. Rc7 {[%clk 0:00:21.1]} 61... Rd3+ {[%clk 0:01:03.8]} 62. Kf4 {[%clk
0:00:21.6]} 62... Rxa3 {[%clk 0:01:01.7]} 63. Ke5 {[%clk 0:00:20.8]} 63... Rg3
{[%clk 0:00:55.5]} 64. Rg7 {[%clk 0:00:14.7]} 64... Re3+ {[%clk 0:00:43]} 65.
Kf6 {[%clk 0:00:15.1]} 65... Rc3 {[%clk 0:00:43.2]} 66. Ke6 {[%clk 0:00:12.7]}
66... Re3+ {[%clk 0:00:43.7]} 67. Kd5 {[%clk 0:00:13.8]} 67... Rd3+ {[%clk
0:00:44.9]} 68. Kc6 {[%clk 0:00:14.8]} 68... Ke8 {[%clk 0:00:44.8]} 69. Rxg6
{[%clk 0:00:14.7]} 69... Rd2 {[%clk 0:00:41.3]} 70. d7+ {[%clk 0:00:14.5]} 70...
Ke7 {[%clk 0:00:37.9]} 71. Rd6 {[%clk 0:00:15.4]} 71... Rxd6+ {[%clk 0:00:32.4]}
72. cxd6+ {[%clk 0:00:17.3]} 72... Kd8 {[%clk 0:00:33.5]} 73. g6 {[%clk
0:00:18.7]} 73... f4 {[%clk 0:00:34.7]} 74. g7 {[%clk 0:00:20]} 74... f3 {[%clk
0:00:36.3]} 75. g8=R# {[%clk 0:00:20.5]} 1-0

[Event "*** Titled Tuesday Blitz"]
[Site "Chess.com"]
[Date "2020.01.07"]
[Round "7"]
[White "Zubrrr"]
[Black "vovachesss"]
[Result "1-0"]
[WhiteElo "2749"]
[BlackElo "2573"]
[TimeControl "180+2"]
[EndTime "14:38:50 PST"]
[Termination "Zubrrr won by resignation"]

1. d4 {[%clk 0:03:01.9]} 1... Nf6 {[%clk 0:02:54]} 2. c4 {[%clk 0:03:02.6]} 2...
c5 {[%clk 0:02:55.7]} 3. dxc5 {[%clk 0:03:00.3]} 3... e6 {[%clk 0:02:55.5]} 4.
Nf3 {[%clk 0:03:01]} 4... Bxc5 {[%clk 0:02:56.3]} 5. e3 {[%clk 0:03:02.6]} 5...
O-O {[%clk 0:02:57.6]} 6. a3 {[%clk 0:03:03.7]} 6... b6 {[%clk 0:02:55.9]} 7. b4
{[%clk 0:03:02.1]} 7... Be7 {[%clk 0:02:56.1]} 8. Bb2 {[%clk 0:03:03.7]} 8...
Bb7 {[%clk 0:02:57.7]} 9. Nbd2 {[%clk 0:03:04.4]} 9... d5 {[%clk 0:02:59.2]} 10.
Qc2 {[%clk 0:03:05.1]} 10... Nc6 {[%clk 0:02:55.1]} 11. Bd3 {[%clk 0:03:01.8]}
11... Rc8 {[%clk 0:02:43.6]} 12. Rd1 {[%clk 0:02:29.5]} 12... h6 {[%clk
0:02:34.2]} 13. Qb1 {[%clk 0:02:26.4]} 13... Qc7 {[%clk 0:02:27.6]} 14. O-O
{[%clk 0:02:24.4]} 14... Rfd8 {[%clk 0:02:28.7]} 15. cxd5 {[%clk 0:02:12.3]}
15... Nxd5 {[%clk 0:02:28]} 16. Ne4 {[%clk 0:02:11.8]} 16... Bf8 {[%clk
0:01:49.9]} 17. Rd2 {[%clk 0:01:54.1]} 17... Qe7 {[%clk 0:01:41.2]} 18. Rfd1
{[%clk 0:01:51.7]} 18... Nb8 {[%clk 0:01:25.2]} 19. Ng3 {[%clk 0:01:19.8]} 19...
Nd7 {[%clk 0:01:22]} 20. Ne5 {[%clk 0:00:56]} 20... N7f6 {[%clk 0:01:12.1]} 21.
Bd4 {[%clk 0:00:46.3]} 21... Rc7 {[%clk 0:01:09.8]} 22. Ne2 {[%clk 0:00:30.2]}
22... Rdc8 {[%clk 0:01:09]} 23. e4 {[%clk 0:00:30.2]} 23... Nc3 {[%clk
0:00:43.5]} 24. Bxc3 {[%clk 0:00:31.3]} 24... Rxc3 {[%clk 0:00:45.4]} 25. Nxc3
{[%clk 0:00:32.7]} 25... Rxc3 {[%clk 0:00:47.3]} 26. Qb2 {[%clk 0:00:32.5]}
26... Qc7 {[%clk 0:00:42.1]} 27. Rc2 {[%clk 0:00:25.8]} 27... Rxc2 {[%clk
0:00:40.7]} 28. Bxc2 {[%clk 0:00:27.7]} 28... Bd6 {[%clk 0:00:19.7]} 29. Nf3
{[%clk 0:00:24.4]} 29... Nxe4 {[%clk 0:00:15]} 30. Bxe4 {[%clk 0:00:18.5]} 30...
Bxe4 {[%clk 0:00:16.9]} 31. Qd4 {[%clk 0:00:19.2]} 31... Bd5 {[%clk 0:00:18.4]}
32. h3 {[%clk 0:00:16.1]} 32... Qc2 {[%clk 0:00:17.5]} 33. Qd3 {[%clk
0:00:13.9]} 33... Qb2 {[%clk 0:00:17]} 34. Nd4 {[%clk 0:00:15]} 34... Be5 {[%clk
0:00:13.1]} 35. Ne2 {[%clk 0:00:11.3]} 35... g6 {[%clk 0:00:10.4]} 36. Rb1
{[%clk 0:00:12.1]} 36... Qa2 {[%clk 0:00:10.7]} 37. Nc1 {[%clk 0:00:13.2]} 37...
Qc4 {[%clk 0:00:08.4]} 38. Qxc4 {[%clk 0:00:13.5]} 38... Bxc4 {[%clk 0:00:10.3]}
39. Nb3 {[%clk 0:00:15.1]} 39... Kg7 {[%clk 0:00:10.1]} 40. g3 {[%clk
0:00:14.5]} 40... Bd5 {[%clk 0:00:11]} 41. Nd2 {[%clk 0:00:14]} 41... Bc3 {[%clk
0:00:11.6]} 42. Nf1 {[%clk 0:00:15]} 42... Be4 {[%clk 0:00:09.7]} 43. Rb3 {[%clk
0:00:16.1]} 43... Bf6 {[%clk 0:00:09.4]} 44. Ne3 {[%clk 0:00:17.4]} 44... Bd4
{[%clk 0:00:09.5]} 45. a4 {[%clk 0:00:17.3]} 45... Kf6 {[%clk 0:00:09.4]} 46.
Kf1 {[%clk 0:00:16.4]} 46... h5 {[%clk 0:00:09.9]} 47. Ke2 {[%clk 0:00:17.5]}
47... Ke5 {[%clk 0:00:11.1]} 48. h4 {[%clk 0:00:18.4]} 48... Kd6 {[%clk
0:00:10.9]} 49. Nc4+ {[%clk 0:00:19.1]} 49... Kd5 {[%clk 0:00:10.6]} 50. Nd2
{[%clk 0:00:20.1]} 50... Bc2 {[%clk 0:00:09.5]} 51. Ra3 {[%clk 0:00:21.5]} 51...
e5 {[%clk 0:00:07.2]} 52. Ra2 {[%clk 0:00:21.6]} 52... Bf5 {[%clk 0:00:05.3]}
53. f3 {[%clk 0:00:23]} 53... Be6 {[%clk 0:00:06.1]} 54. Rc2 {[%clk 0:00:23.2]}
54... Bd7 {[%clk 0:00:06.5]} 55. b5 {[%clk 0:00:17.2]} 55... Kd6 {[%clk
0:00:05.7]} 56. Ne4+ {[%clk 0:00:18.1]} 56... Ke6 {[%clk 0:00:04]} 57. Rc7
{[%clk 0:00:19]} 57... f6 {[%clk 0:00:04.4]} 58. Rxa7 {[%clk 0:00:18.4]} 58...
Be8 {[%clk 0:00:03.3]} 59. Kd3 {[%clk 0:00:16.7]} 59... Bd7 {[%clk 0:00:03.1]}
60. Nxf6 {[%clk 0:00:16]} 60... Bxb5+ {[%clk 0:00:03.5]} 61. axb5 {[%clk
0:00:17.9]} 61... Kxf6 {[%clk 0:00:05.4]} 62. Ke4 {[%clk 0:00:19.2]} 62... Bf2
{[%clk 0:00:06.9]} 63. Rb7 {[%clk 0:00:18.4]} 63... Ke6 {[%clk 0:00:06.8]} 64.
g4 {[%clk 0:00:19.8]} 64... hxg4 {[%clk 0:00:07.6]} 65. fxg4 {[%clk 0:00:21.7]}
65... Kf6 {[%clk 0:00:08.2]} 66. g5+ {[%clk 0:00:18.7]} 66... Ke6 {[%clk
0:00:08.4]} 67. Rh7 {[%clk 0:00:17.7]} 67... Kd6 {[%clk 0:00:07.7]} 68. h5
{[%clk 0:00:17.9]} 68... gxh5 {[%clk 0:00:08.7]} 69. Rxh5 {[%clk 0:00:17.9]}
69... Ke6 {[%clk 0:00:10]} 70. Rh6+ {[%clk 0:00:19.2]} 70... Kf7 {[%clk
0:00:11]} 71. Rf6+ {[%clk 0:00:20.5]} 1-0

[Event "*** Titled Tuesday Blitz"]
[Site "Chess.com"]
[Date "2020.01.07"]
[Round "7"]
[White "Vegan4future"]
[Black "OparinGrigoriy"]
[Result "0-1"]
[WhiteElo "2447"]
[BlackElo "3031"]
[TimeControl "180+2"]
[EndTime "14:39:11 PST"]
[Termination "OparinGrigoriy won by resignation"]

1. d4 {[%clk 0:03:01.9]} 1... Nf6 {[%clk 0:02:53.6]} 2. c4 {[%clk 0:03:01.9]}
2... e6 {[%clk 0:02:55.5]} 3. Nf3 {[%clk 0:03:02.7]} 3... d5 {[%clk 0:02:56.2]}
4. Nc3 {[%clk 0:03:03]} 4... Be7 {[%clk 0:02:57.3]} 5. Bg5 {[%clk 0:03:03.7]}
5... h6 {[%clk 0:02:58.7]} 6. Bxf6 {[%clk 0:03:04.5]} 6... Bxf6 {[%clk
0:03:00.6]} 7. e3 {[%clk 0:03:05.7]} 7... O-O {[%clk 0:03:01.7]} 8. Qc2 {[%clk
0:03:01.1]} 8... dxc4 {[%clk 0:02:57.8]} 9. Bxc4 {[%clk 0:03:01.5]} 9... c5
{[%clk 0:02:59.4]} 10. Rd1 {[%clk 0:03:01]} 10... Nd7 {[%clk 0:02:59.6]} 11. O-O
{[%clk 0:03:01.3]} 11... cxd4 {[%clk 0:02:56]} 12. Nxd4 {[%clk 0:03:00.9]} 12...
Qe7 {[%clk 0:02:56.2]} 13. a3 {[%clk 0:02:45.9]} 13... Nb6 {[%clk 0:02:53.7]}
14. Ba2 {[%clk 0:02:45.5]} 14... Bd7 {[%clk 0:02:54.6]} 15. Ne4 {[%clk
0:02:34.1]} 15... Bxd4 {[%clk 0:02:55.3]} 16. Rxd4 {[%clk 0:02:33.1]} 16... Rac8
{[%clk 0:02:56.8]} 17. Qd3 {[%clk 0:02:33.4]} 17... Bc6 {[%clk 0:02:54]} 18. Bb1
{[%clk 0:02:32.9]} 18... f5 {[%clk 0:02:52.8]} 19. Nc3 {[%clk 0:02:07.6]} 19...
e5 {[%clk 0:02:51.6]} 20. Rd6 {[%clk 0:01:53.5]} 20... e4 {[%clk 0:02:52.4]} 21.
Qd4 {[%clk 0:01:52.1]} 21... Rfd8 {[%clk 0:02:53.3]} 22. Ba2+ {[%clk 0:01:49.2]}
22... Kh7 {[%clk 0:02:51]} 23. Rd1 {[%clk 0:01:43.7]} 23... Rxd6 {[%clk
0:02:49.5]} 24. Qxd6 {[%clk 0:01:45.6]} 24... Qxd6 {[%clk 0:02:50.4]} 25. Rxd6
{[%clk 0:01:47.5]} 25... g6 {[%clk 0:02:52]} 26. h4 {[%clk 0:01:41.4]} 26... Kg7
{[%clk 0:02:45.2]} 27. g3 {[%clk 0:01:29.6]} 27... Rc7 {[%clk 0:02:45.7]} 28. h5
{[%clk 0:01:17.9]} 28... gxh5 {[%clk 0:02:46.4]} 29. Be6 {[%clk 0:01:18.9]}
29... Bd7 {[%clk 0:02:44]} 30. Bb3 {[%clk 0:01:11.5]} 30... Bc6 {[%clk
0:02:35.8]} 31. Be6 {[%clk 0:01:11.7]} 31... Nc8 {[%clk 0:02:33.2]} 32. Rd8
{[%clk 0:01:01.6]} 32... Ne7 {[%clk 0:02:33.6]} 33. Kg2 {[%clk 0:00:58.4]} 33...
Kf6 {[%clk 0:02:34.4]} 34. Bb3 {[%clk 0:00:57.9]} 34... Rd7 {[%clk 0:02:33.6]}
35. Rh8 {[%clk 0:00:49.3]} 35... Kg7 {[%clk 0:02:33.7]} 36. Re8 {[%clk
0:00:50.1]} 36... Ng6 {[%clk 0:02:32.4]} 37. Rg8+ {[%clk 0:00:50.9]} 37... Kf6
{[%clk 0:02:32.8]} 38. Ne2 {[%clk 0:00:46.8]} 38... h4 {[%clk 0:02:23.7]} 39.
Nd4 {[%clk 0:00:43.9]} 39... hxg3 {[%clk 0:02:24.5]} 40. Kxg3 {[%clk 0:00:44.9]}
40... Bd5 {[%clk 0:02:19.2]} 41. Bxd5 {[%clk 0:00:42.5]} 41... Rxd5 {[%clk
0:02:21.1]} 42. Ra8 {[%clk 0:00:38.6]} 42... a6 {[%clk 0:02:21.4]} 43. Rb8
{[%clk 0:00:39.6]} 43... Rd7 {[%clk 0:02:21.9]} 44. Rc8 {[%clk 0:00:37.6]} 44...
h5 {[%clk 0:02:20.3]} 45. b4 {[%clk 0:00:38.5]} 45... f4+ {[%clk 0:02:15.4]} 46.
Kg2 {[%clk 0:00:38.8]} 46... fxe3 {[%clk 0:02:13.8]} 47. fxe3 {[%clk 0:00:40.7]}
47... Ne5 {[%clk 0:02:15.2]} 48. Kg3 {[%clk 0:00:40.1]} 48... Kg5 {[%clk
0:01:43.6]} 49. Rc5 {[%clk 0:00:33.8]} 49... h4+ {[%clk 0:01:39.3]} 50. Kh3
{[%clk 0:00:33.2]} 50... Re7 {[%clk 0:01:36.9]} 51. a4 {[%clk 0:00:34.4]} 51...
Kg6 {[%clk 0:01:12.5]} 52. Kxh4 {[%clk 0:00:33.6]} 52... Rh7+ {[%clk 0:01:09.7]}
53. Kg3 {[%clk 0:00:34.2]} 53... Nd3 {[%clk 0:01:11]} 54. Rc4 {[%clk 0:00:27.4]}
54... Kf6 {[%clk 0:01:11.8]} 55. Ne2 {[%clk 0:00:25.6]} 55... Rg7+ {[%clk
0:01:11.2]} 56. Kh2 {[%clk 0:00:23.1]} 56... Ke5 {[%clk 0:01:11.2]} 57. Ng3
{[%clk 0:00:21.5]} 57... Nf2 {[%clk 0:01:10.5]} 58. Rc5+ {[%clk 0:00:22.9]}
58... Ke6 {[%clk 0:01:11.8]} 59. Rc4 {[%clk 0:00:23.7]} 59... b5 {[%clk
0:00:44.4]} 60. axb5 {[%clk 0:00:23.8]} 60... axb5 {[%clk 0:00:46.3]} 61. Rc5
{[%clk 0:00:24.7]} 61... Ng4+ {[%clk 0:00:38.5]} 62. Kg2 {[%clk 0:00:19.6]}
62... Nxe3+ {[%clk 0:00:39.7]} 63. Kf2 {[%clk 0:00:20.9]} 63... Nd1+ {[%clk
0:00:29.7]} 64. Ke1 {[%clk 0:00:16.7]} 64... Rxg3 {[%clk 0:00:30.7]} 65. Kxd1
{[%clk 0:00:17.3]} 65... Rd3+ {[%clk 0:00:32.2]} 66. Ke2 {[%clk 0:00:17.9]}
66... Rd5 {[%clk 0:00:33.8]} 67. Rc6+ {[%clk 0:00:18.7]} 67... Ke5 {[%clk
0:00:35.1]} 68. Rb6 {[%clk 0:00:18.2]} 68... Kd4 {[%clk 0:00:35.5]} 69. Rb8
{[%clk 0:00:18.8]} 69... Rh5 {[%clk 0:00:32.9]} 70. Rd8+ {[%clk 0:00:17.9]}
70... Kc4 {[%clk 0:00:34.4]} 71. Re8 {[%clk 0:00:19.2]} 71... Rh4 {[%clk
0:00:33]} 72. Ke3 {[%clk 0:00:20]} 72... Kxb4 {[%clk 0:00:34.5]} 73. Rb8 {[%clk
0:00:21.1]} 73... Kc4 {[%clk 0:00:35.5]} 74. Rc8+ {[%clk 0:00:21.5]} 74... Kb3
{[%clk 0:00:37.1]} 75. Rb8 {[%clk 0:00:22.6]} 75... b4 {[%clk 0:00:38.6]} 76.
Rc8 {[%clk 0:00:23.7]} 76... Kb2 {[%clk 0:00:39.5]} 77. Rb8 {[%clk 0:00:24.9]}
77... b3 {[%clk 0:00:41]} 78. Rc8 {[%clk 0:00:26.8]} 78... Kb1 {[%clk
0:00:41.8]} 79. Rb8 {[%clk 0:00:28]} 79... b2 {[%clk 0:00:43.2]} 80. Rc8 {[%clk
0:00:29.4]} 80... Rh5 {[%clk 0:00:42.3]} 81. Kxe4 {[%clk 0:00:27.8]} 81... Ka2
{[%clk 0:00:43]} 82. Ra8+ {[%clk 0:00:27.9]} 82... Kb3 {[%clk 0:00:44.4]} 83.
Rb8+ {[%clk 0:00:28.3]} 83... Kc3 {[%clk 0:00:45.6]} 84. Rc8+ {[%clk 0:00:29]}
84... Kb4 {[%clk 0:00:47]} 0-1